bitfinex/quotes_BTCUSD_20251117
["timestamp","ask_amount","ask_price","bid_price","bid_amount"]
[1763395959153,0.03938387,93584.0,93583.0,0.02819901]
[1763395960019,0.03938387,93584.0,93583.0,0.00682761]
[1763395960679,0.03938387,93584.0,93583.0,0.02819901]
[1763395961188,0.07154108,93584.0,93583.0,0.00682761]
[1763395962051,0.0715276,93584.0,93583.0,0.00682761]
[1763395963895,0.0715276,93584.0,93583.0,0.02819901]
[1763395964121,0.0715276,93584.0,93583.0,0.00682761]
[1763395964564,0.0715276,93584.0,93583.0,0.02819901]
[1763395965252,0.0715276,93584.0,93583.0,0.00682761]
[1763395968301,0.0615276,93584.0,93580.0,0.005]
[1763395968504,3.03937039,93583.0,93580.0,0.005]
[1763395968717,3.06194112,93583.0,93580.0,0.005]
[1763395969329,3.06194112,93583.0,93582.0,0.1995428]
[1763395970061,0.06194112,93583.0,93582.0,0.1995428]
[1763395970287,0.03937039,93583.0,93582.0,0.1995428]
[1763395970486,0.06194112,93583.0,93582.0,0.22091443]
[1763395971483,0.06194112,93583.0,93582.0,0.1995428]
[1763395971718,0.09578823,93583.0,93582.0,0.1995428]
[1763395972164,0.03937039,93583.0,93582.0,0.1995428]
[1763395972367,3.03937039,93583.0,93582.0,0.1995428]
[1763395972579,3.06194112,93583.0,93582.0,0.1995428]
[1763395973392,3.06194112,93583.0,93582.0,0.18667169]
[1763395974076,3.06194112,93583.0,93582.0,0.08236206]
[1763395974795,0.06194112,93583.0,93582.0,0.08236206]
[1763395975005,0.03937039,93583.0,93582.0,0.08236206]
[1763395975815,3.03992916,93583.0,93582.0,0.07236206]
[1763395976106,3.06194112,93583.0,93582.0,0.07236206]
[1763395976847,3.06294112,93583.0,93582.0,0.07236206]
[1763395977450,3.06194112,93583.0,93582.0,0.07236206]
[1763395977674,3.06190112,93583.0,93582.0,0.07236206]
[1763395978417,3.06190112,93583.0,93582.0,0.05949009]
[1763395979339,3.06190112,93583.0,93582.0,0.04903157]
[1763395980071,3.06290112,93583.0,93582.0,0.04903157]
[1763395980483,0.06290112,93583.0,93582.0,0.04903157]
[1763395980680,0.03933039,93583.0,93582.0,0.0704032]
[1763395980818,0.04033039,93583.0,93582.0,0.04903157]
[1763395981231,3.04033039,93583.0,93582.0,0.04903157]
[1763395981452,3.06190112,93583.0,93582.0,0.04903157]
[1763395982073,0.06190112,93583.0,93582.0,0.04903157]
[1763395982404,0.03933039,93583.0,93582.0,0.04903157]
[1763395982597,0.03933039,93583.0,93570.0,0.00639999]
[1763395982598,0.22399998,93580.0,93571.0,78.97591101]
[1763395982817,0.15631874,93572.0,93571.0,75.96570626]
[1763395983028,0.21821986,93572.0,93571.0,73.25817547]
[1763395983240,0.21821986,93572.0,93571.0,73.21205407]
[1763395983458,3.21821986,93572.0,93571.0,73.19418061]
[1763395983894,3.10531986,93572.0,93571.0,72.31716318]
[1763395984169,3.10531986,93572.0,93571.0,71.44189795]
[1763395984370,3.10531986,93572.0,93571.0,70.89921459]
[1763395984571,2.98891986,93572.0,93571.0,65.82222409]
[1763395984955,3.31191986,93572.0,93571.0,65.82222409]
[1763395985121,0.43031986,93572.0,93571.0,65.82222409]
[1763395985324,3.43031986,93572.0,93571.0,65.81502172]
[1763395985977,3.50854918,93572.0,93571.0,65.81502172]
[1763395986201,3.50854918,93572.0,93571.0,65.79102172]
[1763395986202,3.44512313,93572.0,93571.0,65.79102172]
[1763395986650,3.45112313,93572.0,93571.0,65.79102172]
[1763395987075,3.44812313,93572.0,93571.0,65.79102172]
[1763395987483,3.45112313,93572.0,93571.0,65.79102172]
[1763395987690,3.25804824,93572.0,93571.0,65.79102172]
[1763395988552,3.25804824,93572.0,93571.0,65.778141]
[1763395988963,3.25804824,93572.0,93571.0,65.7635546]
[1763395989152,3.25804824,93572.0,93571.0,65.74132672]
[1763395989388,3.25804824,93572.0,93571.0,60.60302678]
[1763395989389,3.37094824,93572.0,93571.0,60.60302678]
[1763395989564,3.37094824,93572.0,93571.0,60.4536427]
[1763395989767,3.41679423,93572.0,93571.0,60.44698952]
[1763395990324,3.42379423,93572.0,93571.0,55.38410475]
[1763395990547,0.42679423,93572.0,93571.0,52.35054668]
[1763395990749,2.47679423,93572.0,93571.0,52.3261173]
[1763395991103,2.30279423,93572.0,93571.0,52.1665173]
[1763395991311,3.42079423,93572.0,93571.0,50.24839056]
[1763395991483,3.42879423,93572.0,93571.0,49.54863906]
[1763395991923,3.42236698,93572.0,93571.0,48.2545595]
[1763395992125,3.26604824,93572.0,93571.0,46.96769897]
[1763395992324,3.04476327,93572.0,93571.0,45.68083844]
[1763395992661,3.03676327,93572.0,93571.0,43.53607089]
[1763395992884,0.04076327,93572.0,93571.0,42.24921036]
[1763395993130,0.04076327,93572.0,93571.0,41.82025685]
[1763395993131,0.04476327,93572.0,93571.0,41.82025685]
[1763395993316,0.03076327,93572.0,93571.0,41.82025685]
[1763395993529,0.06396669,93572.0,93571.0,41.82025685]
[1763395993736,0.02976327,93572.0,93571.0,41.82025685]
[1763395994083,0.01296,93572.0,93571.0,41.82025685]
[1763395994292,0.00996,93572.0,93571.0,41.82025685]
[1763395994507,0.04712759,93572.0,93571.0,41.82025685]
[1763395994710,0.04912753,93572.0,93571.0,41.82025685]
[1763395995131,0.01496,93572.0,93571.0,41.80630578]
[1763395995338,0.002,93572.0,93571.0,41.80630578]
[1763395995551,0.00686781,93572.0,93571.0,41.80630578]
[1763395995759,0.01017031,93572.0,93571.0,41.80630578]
[1763395995951,0.00939212,93572.0,93571.0,41.80630578]
[1763395996157,0.01139212,93572.0,93571.0,41.80630578]
[1763395996364,0.01139212,93572.0,93571.0,41.78886984]
[1763395996365,0.0023463,93572.0,93571.0,41.78886984]
[1763395996585,0.00177401,93572.0,93571.0,41.78886984]
[1763395996789,0.00098648,93572.0,93571.0,41.78886984]
[1763395996977,3.00298648,93572.0,93571.0,41.78886984]
[1763395997262,3.00242771,93572.0,93571.0,41.78886984]
[1763395997463,3.01822995,93572.0,93571.0,41.52539386]
[1763395997669,3.06164869,93572.0,93571.0,41.44789854]
[1763395997867,0.06264869,93572.0,93571.0,41.44596854]
[1763395998145,3.13602364,93572.0,93571.0,41.24906585]
[1763395998344,3.13602364,93572.0,93571.0,41.24208966]
[1763395998345,3.06164869,93572.0,93571.0,41.24208966]
[1763395998576,3.06824634,93572.0,93571.0,41.22921054]
[1763395998785,3.06824634,93572.0,93571.0,41.20479348]
[1763395999018,3.06824634,93572.0,93571.0,41.204284]
[1763395999231,3.06724634,93572.0,93571.0,41.204284]
[1763395999431,3.06624634,93572.0,93571.0,41.19381958]
[1763395999664,3.06964554,93572.0,93571.0,41.19381958]
[1763395999964,3.09126112,93572.0,93571.0,41.19381958]
[1763396000192,3.09156578,93572.0,93571.0,40.98210588]
[1763396000419,3.09726112,93572.0,93571.0,40.98210588]
[1763396000635,3.09426112,93572.0,93571.0,40.98210588]
[1763396000843,3.19723766,93572.0,93571.0,40.92863869]
[1763396001058,3.10726112,93572.0,93571.0,40.92863869]
[1763396001267,3.10726112,93572.0,93571.0,40.6578016]
[1763396001477,3.10726112,93572.0,93571.0,40.62565925]
[1763396001692,3.10426112,93572.0,93571.0,40.62565925]
[1763396001901,3.23732385,93572.0,93571.0,40.62565925]
[1763396002119,3.23432385,93572.0,93571.0,40.62565925]
[1763396002325,3.10126112,93572.0,93571.0,40.62565925]
[1763396002531,3.10826112,93572.0,93571.0,40.62565925]
[1763396002742,3.10826112,93572.0,93571.0,40.5935169]
[1763396002960,3.10126112,93572.0,93571.0,40.5935169]
[1763396003173,3.10426112,93572.0,93571.0,40.5935169]
[1763396003382,3.10826112,93572.0,93571.0,40.5935169]
[1763396003588,3.10826112,93572.0,93571.0,40.5586245]
[1763396003589,3.10526112,93572.0,93571.0,40.5586245]
[1763396003876,3.10126112,93572.0,93571.0,40.5586245]
[1763396004159,3.10426112,93572.0,93571.0,40.5586245]
[1763396004382,3.10426112,93572.0,93571.0,40.50319577]
[1763396004383,3.21716112,93572.0,93571.0,40.50319577]
[1763396004626,3.21716112,93572.0,93571.0,40.11542984]
[1763396004627,3.21156347,93572.0,93571.0,40.11542984]
[1763396004862,3.21576023,93572.0,93571.0,35.07534628]
[1763396005094,3.21176023,93572.0,93571.0,35.07534628]
[1763396005321,3.20876023,93572.0,93571.0,35.07534628]
[1763396005554,4.22576021,93572.0,93571.0,35.07534628]
[1763396005787,4.22576021,93572.0,93571.0,34.82944628]
[1763396006011,4.47166021,93572.0,93571.0,33.95226335]
[1763396006251,4.47566021,93572.0,93571.0,32.13631473]
[1763396006478,4.22576021,93572.0,93571.0,28.95245379]
[1763396006711,4.22576021,93572.0,93571.0,23.18300977]
[1763396006940,4.22576021,93572.0,93571.0,21.77162975]
[1763396007167,4.22976021,93572.0,93571.0,19.95568573]
[1763396007397,4.22976021,93572.0,93571.0,18.58171294]
[1763396007616,4.21295797,93572.0,93571.0,16.38306892]
[1763396007841,4.30179114,93572.0,93571.0,14.97771978]
[1763396008055,4.20895797,93572.0,93571.0,12.90526842]
[1763396008275,4.21295797,93572.0,93571.0,6.90502404]
[1763396008517,4.20895797,93572.0,93571.0,5.17615715]
[1763396008736,4.20895797,93572.0,93571.0,3.14550026]
[1763396008957,4.20495797,93572.0,93571.0,1.32909771]
[1763396009177,4.20995797,93572.0,93571.0,5e-08]
[1763396009382,4.20995797,93572.0,93540.0,0.07175308]
[1763396009383,0.1079,93549.0,93540.0,0.07175308]
[1763396009590,0.1079,93545.0,93540.0,0.07175308]
[1763396009792,0.1079,93543.0,93540.0,0.07175308]
[1763396009994,3.1079,93541.0,93540.0,0.07175308]
[1763396010224,0.15926511,93541.0,93540.0,0.05886645]
[1763396010476,3.0,93539.0,93451.0,0.00014513]
[1763396010700,0.21399999,93540.0,93531.0,81.27412434]
[1763396010701,0.24289102,93534.0,93531.0,81.27412434]
[1763396010910,0.1129,93532.0,93531.0,81.27412434]
[1763396011316,0.2564,93532.0,93531.0,81.27412434]
[1763396011601,0.2886007,93532.0,93531.0,81.27412434]
[1763396011944,0.09310981,93535.0,93532.0,0.04341874]
[1763396012026,0.00044101,93541.0,93532.0,0.04341874]
[1763396012027,0.07448404,93533.0,93532.0,0.04341874]
[1763396012255,0.00099978,93541.0,93532.0,0.04041874]
[1763396012461,0.05596489,93537.0,93531.0,81.27412434]
[1763396012679,0.003,93532.0,93531.0,81.27412434]
[1763396012893,0.004,93532.0,93531.0,81.27412434]
[1763396013106,0.001,93532.0,93531.0,81.27412434]
[1763396013321,0.03831414,93532.0,93531.0,81.26714809]
[1763396013528,0.001,93532.0,93531.0,81.26714809]
[1763396014158,0.05596489,93538.0,93531.0,81.26714809]
[1763396014411,0.05652366,93537.0,93531.0,81.26714809]
[1763396014604,0.05596489,93532.0,93531.0,81.26714809]
[1763396014791,0.00055877,93537.0,93531.0,81.26714809]
[1763396015171,0.07461986,93536.0,93531.0,81.20918282]
[1763396015371,0.00055877,93535.0,93531.0,81.20918282]
[1763396016228,0.00055877,93535.0,93531.0,81.19173787]
[1763396016621,0.00055877,93535.0,93534.0,0.00093196]
[1763396017495,0.002,93536.0,93534.0,0.00093196]
[1763396017696,0.001,93536.0,93531.0,81.19173787]
[1763396017952,0.05593832,93535.0,93531.0,81.19173787]
[1763396018195,0.003,93535.0,93531.0,81.19173787]
[1763396018425,0.002,93535.0,93534.0,0.00093196]
[1763396018646,0.00044101,93541.0,93534.0,0.00093196]
[1763396018867,0.00044101,93541.0,93531.0,81.19173787]
[1763396018868,0.001,93536.0,93531.0,81.19173787]
[1763396019095,0.05589916,93533.0,93531.0,81.19173787]
[1763396019616,0.05589916,93532.0,93531.0,81.18127252]
[1763396019885,0.05589916,93533.0,93531.0,81.18127252]
[1763396020371,0.001,93536.0,93531.0,81.18127252]
[1763396020613,0.00055877,93532.0,93531.0,81.16839175]
[1763396021548,0.00055877,93534.0,93531.0,81.16839175]
[1763396022284,0.001,93532.0,93531.0,81.16839175]
[1763396022488,0.03065653,93532.0,93531.0,81.16839175]
[1763396022904,0.02965653,93532.0,93531.0,81.08144188]
[1763396023363,0.02965653,93532.0,93531.0,81.06111626]
[1763396024924,0.10371762,93532.0,93531.0,81.06111626]
[1763396025127,0.05243773,93532.0,93531.0,81.03669365]
[1763396025351,0.03064989,93532.0,93531.0,81.03771036]
[1763396025758,0.02964989,93532.0,93531.0,81.02482753]
[1763396025961,0.03064989,93532.0,93531.0,81.02482753]
[1763396026496,0.03264989,93532.0,93531.0,81.00738172]
[1763396026686,0.06327227,93532.0,93531.0,81.00738172]
[1763396026824,0.06633909,93532.0,93531.0,81.00738172]
[1763396027042,0.06533909,93532.0,93531.0,80.99070936]
[1763396027258,0.06394973,93532.0,93531.0,80.96007752]
[1763396027501,0.03371671,93532.0,93531.0,80.96007752]
[1763396027725,0.03009112,93532.0,93531.0,80.93147778]
[1763396027933,0.03164989,93532.0,93531.0,80.93147778]
[1763396028182,0.03264989,93532.0,93531.0,80.93147778]
[1763396029054,0.03264989,93532.0,93531.0,80.93110637]
[1763396029493,0.03064989,93532.0,93531.0,80.92063934]
[1763396029926,0.01125581,93532.0,93531.0,80.92063934]
[1763396030133,0.01125581,93532.0,93531.0,80.86266951]
[1763396030573,0.01069704,93532.0,93531.0,80.86266951]
[1763396030863,0.01169704,93532.0,93531.0,80.86266951]
[1763396031106,0.01269704,93532.0,93531.0,80.86266951]
[1763396031328,0.02331224,93532.0,93531.0,80.90608825]
[1763396031542,0.02231224,93532.0,93531.0,80.90608825]
[1763396031773,0.02431224,93532.0,93531.0,81.10608825]
[1763396031988,0.0792659,93532.0,93531.0,81.10608825]
[1763396032230,0.0782659,93532.0,93531.0,81.06266951]
[1763396032438,0.02231224,93532.0,93531.0,81.06266951]
[1763396032651,0.02331224,93532.0,93531.0,81.06266951]
[1763396033968,0.02231224,93532.0,93531.0,81.06266951]
[1763396034208,0.02331224,93532.0,93531.0,81.06266951]
[1763396035077,0.04011529,93532.0,93531.0,81.06266951]
[1763396035547,0.03744784,93532.0,93531.0,81.06266951]
[1763396036718,0.03744784,93532.0,93531.0,81.0625701]
[1763396037167,0.03644784,93532.0,93531.0,81.0625701]
[1763396037731,0.09366858,93546.0,93545.0,0.88540077]
[1763396037911,0.0128949,93546.0,93545.0,0.86801056]
[1763396038106,0.01233613,93546.0,93545.0,0.86801056]
[1763396038316,0.09366858,93552.0,93545.0,0.86801056]
[1763396038537,0.09366858,93552.0,93545.0,0.86701056]
[1763396038750,0.09310981,93551.0,93545.0,0.86701056]
[1763396038954,0.00055877,93550.0,93545.0,0.86667629]
[1763396039160,0.09366858,93550.0,93545.0,0.86667629]
[1763396039361,0.001,93546.0,93545.0,0.86667629]
[1763396039782,0.00055877,93546.0,93545.0,0.86667629]
[1763396040206,0.00055877,93546.0,93545.0,0.72176935]
[1763396040415,0.09366858,93546.0,93545.0,0.72176935]
[1763396040623,0.10373371,93546.0,93545.0,0.72176935]
[1763396040833,0.0106239,93546.0,93545.0,0.72176935]
[1763396041046,0.0106239,93546.0,93545.0,0.48410614]
[1763396041047,3.01257426,93546.0,93545.0,0.48410614]
[1763396041266,3.02882124,93546.0,93545.0,0.43108757]
[1763396041472,3.04730812,93546.0,93545.0,0.41820409]
[1763396041684,3.08050983,93546.0,93545.0,0.41489939]
[1763396041894,3.08050983,93546.0,93545.0,0.40419673]
[1763396042344,0.00906513,93532.0,93531.0,81.05769177]
[1763396042555,3.02899419,93532.0,93531.0,81.01217127]
[1763396042959,3.02899419,93532.0,93531.0,80.84614725]
[1763396043228,3.02899419,93532.0,93531.0,80.6303079]
[1763396043229,3.07439206,93532.0,93531.0,80.6303079]
[1763396043676,3.07241293,93532.0,93531.0,80.63132464]
[1763396044139,3.02899419,93532.0,93531.0,80.63132464]
[1763396044538,3.03199419,93532.0,93531.0,80.63132464]
[1763396044685,3.03199419,93532.0,93531.0,80.62781122]
[1763396044888,3.07241293,93532.0,93531.0,80.62477833]
[1763396045095,0.07341293,93532.0,93531.0,80.62477833]
[1763396045300,3.20584018,93532.0,93531.0,80.61781541]
[1763396045530,3.20584018,93532.0,93531.0,80.61109005]
[1763396045767,3.07841293,93532.0,93531.0,80.61109005]
[1763396045973,3.07541293,93532.0,93531.0,80.61109005]
[1763396046212,3.07841293,93532.0,93531.0,80.61109005]
[1763396046446,3.07541293,93532.0,93531.0,80.61109005]
[1763396046657,3.20266388,93532.0,93531.0,80.61109005]
[1763396046866,3.20866388,93532.0,93531.0,80.61109005]
[1763396047073,3.07841293,93532.0,93531.0,80.61109005]
[1763396047282,3.07541293,93532.0,93531.0,80.61109005]
[1763396047495,3.32131293,93532.0,93531.0,80.61109005]
[1763396047888,3.07841293,93532.0,93531.0,80.59363606]
[1763396048104,3.03499419,93532.0,93531.0,80.59363606]
[1763396048521,3.07841293,93532.0,93531.0,80.59363606]
[1763396048739,3.40141293,93532.0,93531.0,80.59363606]
[1763396049150,3.40141293,93532.0,93531.0,80.56887868]
[1763396049358,0.40141293,93532.0,93531.0,80.56887868]
[1763396049569,3.40141293,93532.0,93531.0,80.56887868]
[1763396050075,3.39841293,93532.0,93531.0,80.56887868]
[1763396050305,0.40141293,93532.0,93531.0,80.42387011]
[1763396050530,3.40141293,93532.0,93531.0,80.42387011]
[1763396050728,3.39841293,93532.0,93531.0,80.42381968]
[1763396051088,3.40141293,93532.0,93531.0,80.42381968]
[1763396051744,3.60389419,93532.0,93531.0,80.42381968]
[1763396052052,3.60389419,93532.0,93531.0,80.4070141]
[1763396052919,3.64885814,93532.0,93531.0,80.4070141]
[1763396053109,3.40295814,93532.0,93531.0,80.3941252]
[1763396053322,3.40295814,93532.0,93531.0,80.18983659]
[1763396053538,3.43516842,93532.0,93531.0,80.18973583]
[1763396053752,3.43516842,93532.0,93531.0,80.18344749]
[1763396054152,3.56514458,93532.0,93531.0,80.18344749]
[1763396054591,3.43216842,93532.0,93531.0,80.18344749]
[1763396054793,3.44898124,93532.0,93531.0,80.18344749]
[1763396054992,3.44598124,93532.0,93531.0,80.18344749]
[1763396055199,3.26827537,93532.0,93531.0,80.18344749]
[1763396055415,3.28527537,93532.0,93531.0,80.18344749]
[1763396055621,3.28527537,93532.0,93531.0,80.07662819]
[1763396055825,3.05756831,93532.0,93531.0,80.07662819]
[1763396056041,3.06756831,93532.0,93531.0,80.07662819]
[1763396056251,3.10798705,93532.0,93531.0,80.07662819]
[1763396056450,3.11098705,93532.0,93531.0,80.07662819]
[1763396056597,3.10698705,93532.0,93531.0,80.07662819]
[1763396056800,3.10398705,93532.0,93531.0,80.07662819]
[1763396057004,3.10515374,93532.0,93531.0,80.05219331]
[1763396057186,3.10515374,93532.0,93531.0,80.04704276]
[1763396057610,3.10115374,93532.0,93531.0,79.93970548]
[1763396057817,3.10415374,93532.0,93531.0,79.92224879]
[1763396058224,3.10315374,93532.0,93531.0,79.92224879]
[1763396058455,3.10115374,93532.0,93531.0,79.92224879]
[1763396058684,3.10115374,93532.0,93531.0,79.92219201]
[1763396058839,3.16132892,93532.0,93531.0,79.39306244]
[1763396059039,3.16132892,93532.0,93531.0,79.39274049]
[1763396059544,3.16132892,93532.0,93531.0,79.31397143]
[1763396059545,3.10815374,93532.0,93531.0,79.31397143]
[1763396059858,3.11015757,93532.0,93531.0,79.26088127]
[1763396060262,3.10415374,93532.0,93531.0,79.1158631]
[1763396060427,0.10415374,93532.0,93531.0,77.8283264]
[1763396060632,0.10415374,93532.0,93531.0,76.5407897]
[1763396060633,3.10815374,93532.0,93531.0,76.5407897]
[1763396060832,3.10815374,93532.0,93531.0,76.51714766]
[1763396061073,3.10815374,93532.0,93531.0,76.41718316]
[1763396061354,3.10115374,93532.0,93531.0,76.31721866]
[1763396061576,3.10415374,93532.0,93531.0,76.17671963]
[1763396061778,3.10815374,93532.0,93531.0,76.16221665]
[1763396061948,3.22306238,93532.0,93531.0,75.98471836]
[1763396062180,3.22306238,93532.0,93531.0,75.8186199]
[1763396062314,4.23046238,93532.0,93531.0,75.71221131]
[1763396062515,4.22845374,93532.0,93531.0,73.13153611]
[1763396062882,4.22545374,93532.0,93531.0,69.59810361]
[1763396063108,4.22845374,93532.0,93531.0,67.78140511]
[1763396063250,4.22445374,93532.0,93531.0,65.34285223]
[1763396063452,4.22445374,93532.0,93531.0,64.82443633]
[1763396063453,4.068135,93532.0,93531.0,64.82443633]
[1763396063665,4.072135,93532.0,93531.0,64.72447183]
[1763396063868,4.072135,93532.0,93531.0,64.62085381]
[1763396064127,4.11155374,93532.0,93531.0,64.52038931]
[1763396064332,4.11555374,93532.0,93531.0,64.51802478]
[1763396064549,3.22105374,93532.0,93531.0,62.26962519]
[1763396064766,3.22105374,93532.0,93531.0,59.5945597]
[1763396064980,3.22105374,93532.0,93531.0,57.4486422]
[1763396064981,3.10115374,93532.0,93531.0,57.4486422]
[1763396065165,3.057735,93532.0,93531.0,54.76992605]
[1763396065480,3.10815374,93532.0,93531.0,52.09486056]
[1763396065709,3.061735,93532.0,93531.0,49.41979506]
[1763396065932,3.10815374,93532.0,93531.0,46.74472956]
[1763396066160,3.10815374,93532.0,93531.0,44.16962856]
[1763396066395,3.10515374,93532.0,93531.0,41.49456306]
[1763396066609,3.10315374,93532.0,93531.0,39.24868106]
[1763396066820,3.10115374,93532.0,93531.0,38.29034956]
[1763396067053,3.10515374,93532.0,93531.0,38.29034956]
[1763396067305,3.12456577,93532.0,93531.0,38.15817501]
[1763396067518,3.07714703,93532.0,93531.0,38.05821051]
[1763396067742,3.08014703,93532.0,93531.0,38.05821051]
[1763396067971,0.08014703,93532.0,93531.0,38.05821051]
[1763396068194,0.07714703,93532.0,93531.0,37.95824601]
[1763396068413,0.08014703,93532.0,93531.0,37.85828151]
[1763396068634,0.08014703,93532.0,93531.0,37.75831701]
[1763396068856,0.32804703,93532.0,93531.0,37.65835251]
[1763396069316,0.32604703,93532.0,93531.0,37.65835251]
[1763396069518,0.32804703,93532.0,93531.0,37.53479639]
[1763396069730,0.32304703,93532.0,93531.0,37.43483189]
[1763396069950,0.07714703,93532.0,93531.0,37.43483189]
[1763396070156,0.08214703,93532.0,93531.0,37.3812997]
[1763396070359,3.08214703,93532.0,93531.0,37.3812997]
[1763396070565,3.07914703,93532.0,93531.0,37.3812997]
[1763396070768,3.07914703,93532.0,93531.0,37.28488839]
[1763396070973,3.08214703,93532.0,93531.0,37.2813352]
[1763396071145,3.08214703,93532.0,93531.0,37.1813707]
[1763396071371,3.08014703,93532.0,93531.0,37.1813707]
[1763396071589,3.07714703,93532.0,93531.0,37.1813707]
[1763396071793,3.07914703,93532.0,93531.0,37.0639552]
[1763396072788,3.08214703,93532.0,93531.0,37.0639552]
[1763396072999,3.08014703,93532.0,93531.0,37.0639552]
[1763396073394,3.07914703,93532.0,93531.0,37.0639552]
[1763396073642,3.08214703,93532.0,93531.0,37.01042301]
[1763396074234,0.08214703,93532.0,93531.0,37.01042301]
[1763396074439,0.07914703,93532.0,93531.0,37.01042301]
[1763396074989,0.08214703,93532.0,93531.0,37.01042301]
[1763396075224,0.08014703,93532.0,93531.0,37.01042301]
[1763396075410,0.08214703,93532.0,93531.0,37.01042301]
[1763396075619,0.08014703,93532.0,93531.0,37.01042301]
[1763396075834,0.08014703,93532.0,93531.0,36.54701745]
[1763396076046,0.08114703,93532.0,93531.0,36.54701745]
[1763396076253,0.07814703,93532.0,93531.0,36.54701745]
[1763396076488,0.08014703,93532.0,93531.0,36.54701745]
[1763396077106,3.08014703,93532.0,93531.0,36.54701745]
[1763396077311,3.1550379,93532.0,93531.0,36.54701745]
[1763396077515,3.08014703,93532.0,93531.0,36.54701745]
[1763396077929,0.08014703,93532.0,93531.0,36.54701745]
[1763396078141,3.0807058,93532.0,93531.0,36.54701745]
[1763396078343,3.08014703,93532.0,93531.0,36.54701745]
[1763396078552,0.08014703,93532.0,93531.0,36.54701745]
[1763396079169,0.13332221,93532.0,93531.0,36.54701745]
[1763396079475,0.08014703,93532.0,93531.0,36.54701745]
[1763396080112,0.060735,93532.0,93531.0,36.54701745]
[1763396080392,0.08022885,93532.0,93531.0,36.54701745]
[1763396080815,0.08022885,93532.0,93531.0,36.53655673]
[1763396081037,0.08022885,93532.0,93531.0,36.43985174]
[1763396081457,3.12364759,93532.0,93531.0,36.43985174]
[1763396081869,3.12364759,93532.0,93531.0,36.42240027]
[1763396082718,3.32942439,93532.0,93531.0,36.24387073]
[1763396082928,3.23654759,93532.0,93531.0,36.24387073]
[1763396083134,3.23454759,93532.0,93531.0,36.24387073]
[1763396083340,3.23654759,93532.0,93531.0,36.24387073]
[1763396084020,3.23354759,93532.0,93531.0,36.22925192]
[1763396084202,3.23654759,93532.0,93531.0,36.1703452]
[1763396084435,0.36645642,93532.0,93531.0,36.15745527]
[1763396084633,3.34696257,93532.0,93531.0,36.15745527]
[1763396084864,3.21905374,93532.0,93531.0,36.15745527]
[1763396085087,3.21705374,93532.0,93531.0,36.15745527]
[1763396085313,3.21705374,93532.0,93531.0,36.12525328]
[1763396085763,3.34798376,93532.0,93531.0,36.0886224]
[1763396085968,3.10715374,93532.0,93531.0,35.8856066]
[1763396086190,3.063735,93532.0,93531.0,35.8856066]
[1763396086825,3.19464991,93532.0,93531.0,35.8856066]
[1763396087028,3.23806865,93532.0,93531.0,35.8856066]
[1763396087270,3.10415374,93532.0,93531.0,35.8856066]
[1763396087505,3.10415374,93532.0,93531.0,35.8845076]
[1763396087729,3.10715374,93532.0,93531.0,35.8845076]
[1763396088004,3.10415374,93532.0,93531.0,35.8845076]
[1763396088200,3.10615374,93532.0,93531.0,35.8845076]
[1763396088451,3.10315374,93532.0,93531.0,35.8845076]
[1763396088675,3.10115374,93532.0,93531.0,35.8845076]
[1763396088912,3.10115374,93532.0,93531.0,35.78454311]
[1763396089162,3.10315374,93532.0,93531.0,35.77734205]
[1763396089576,3.059735,93532.0,93531.0,35.77734205]
[1763396089784,3.062735,93532.0,93531.0,35.77734205]
[1763396090466,3.059735,93532.0,93531.0,35.77734205]
[1763396090698,3.08222173,93532.0,93531.0,35.77734205]
[1763396090923,3.08022173,93532.0,93531.0,35.7529077]
[1763396091134,3.07722173,93532.0,93531.0,35.7529077]
[1763396091348,3.07922173,93532.0,93531.0,35.7529077]
[1763396091563,3.08022173,93532.0,93531.0,35.7529077]
[1763396091808,3.11022327,93532.0,93531.0,35.7529077]
[1763396092043,3.11022327,93532.0,93531.0,35.73545449]
[1763396092252,3.15364201,93532.0,93531.0,35.73545449]
[1763396092426,3.28455692,93532.0,93531.0,35.73545449]
[1763396092647,3.24113818,93532.0,93531.0,35.59045753]
[1763396092854,3.23813818,93532.0,93531.0,35.59045753]
[1763396093067,3.24113818,93532.0,93531.0,35.59045753]
[1763396093286,3.11022327,93532.0,93531.0,35.59045753]
[1763396093920,3.10822327,93532.0,93531.0,35.59045753]
[1763396094413,3.11022327,93532.0,93531.0,35.59045753]
[1763396095046,3.10822327,93532.0,93531.0,35.59045753]
[1763396095424,3.11022327,93532.0,93531.0,35.59045753]
[1763396096224,3.10722327,93532.0,93531.0,35.59045753]
[1763396096435,3.11022327,93532.0,93531.0,35.59045753]
[1763396097017,3.10722327,93532.0,93531.0,35.59045753]
[1763396097453,3.11022327,93532.0,93531.0,35.59045753]
[1763396097665,0.013,93532.0,93531.0,35.59045753]
[1763396097867,3.07918015,93532.0,93531.0,35.59045753]
[1763396098089,3.21972316,93532.0,93531.0,35.38746492]
[1763396098472,3.33649068,93532.0,93531.0,35.38746492]
[1763396098689,3.33452138,93532.0,93531.0,35.38746492]
[1763396098884,3.33452138,93532.0,93531.0,35.33551148]
[1763396099307,3.44639068,93532.0,93531.0,35.33551148]
[1763396099547,3.44742138,93532.0,93531.0,35.33551148]
[1763396099742,3.44742138,93532.0,93531.0,35.32262227]
[1763396100174,3.44442138,93532.0,93531.0,35.32262227]
[1763396100392,3.44939068,93532.0,93531.0,35.3116292]
[1763396100607,3.44942138,93532.0,93531.0,35.3116292]
[1763396100825,0.44942138,93532.0,93531.0,35.27671648]
[1763396101043,0.44942138,93532.0,93531.0,33.32984908]
[1763396101044,3.464236,93532.0,93531.0,33.32984908]
[1763396101275,3.2437953,93532.0,93531.0,29.68997839]
[1763396101494,3.241826,93532.0,93531.0,29.68018604]
[1763396101719,4.227736,93532.0,93531.0,29.65870604]
[1763396101962,4.227736,93532.0,93531.0,29.18839251]
[1763396102170,4.225736,93532.0,93531.0,29.13754443]
[1763396102383,4.222736,93532.0,93531.0,29.13754443]
[1763396102594,4.226736,93532.0,93531.0,29.09228694]
[1763396102812,4.226736,93532.0,93531.0,28.99101103]
[1763396103036,4.226736,93532.0,93531.0,28.95189218]
[1763396103304,4.222736,93532.0,93531.0,28.94105759]
[1763396103576,4.41891181,93532.0,93531.0,28.34239622]
[1763396103790,4.41591181,93532.0,93531.0,28.30670601]
[1763396104006,4.41091181,93532.0,93531.0,28.27448602]
[1763396104225,4.226736,93532.0,93531.0,27.87048602]
[1763396104448,4.109836,93532.0,93531.0,27.86415626]
[1763396104666,4.07041726,93532.0,93531.0,27.66215626]
[1763396105106,4.07041726,93532.0,93531.0,26.45015626]
[1763396105107,4.20117852,93532.0,93531.0,26.45015626]
[1763396105344,4.20117852,93532.0,93531.0,25.94515626]
[1763396105573,3.06801726,93532.0,93531.0,24.63215626]
[1763396105803,3.05801726,93532.0,93531.0,22.91515626]
[1763396106020,3.06301726,93532.0,93531.0,22.30915626]
[1763396106234,3.06601726,93532.0,93531.0,22.30905691]
[1763396106454,3.105436,93532.0,93531.0,20.99336923]
[1763396106668,3.102436,93532.0,93531.0,20.28602151]
[1763396106890,0.105436,93532.0,93531.0,20.26158283]
[1763396107156,3.105436,93532.0,93531.0,20.26158283]